fUST/lending_fUST_20240116
["ID","MTS","AMOUNT","RATE_DAILY","PERIOD"]
[311708908,1705347041536,-500.0,0.00030136,2]
[311708911,1705347041545,-500.0,0.00030136,2]
[311708914,1705347041554,-500.0,0.00030136,2]
[311708917,1705347041564,-500.0,0.00030136,2]
[311708919,1705347041573,-500.0,0.00030136,2]
[311708921,1705347041583,-500.0,0.00030136,2]
[311708923,1705347041593,-500.0,0.00030136,2]
[311708925,1705347041602,-505.67458463,0.00030136,2]
[311708927,1705347041612,-500.0,0.00030136,2]
[311708929,1705347041622,-1082.28,0.00030136,2]
[311708931,1705347041633,-500.0,0.00030136,2]
[311708933,1705347041642,-500.0,0.00030136,2]
[311708935,1705347041652,-505.17466226,0.00030136,2]
[311708937,1705347041662,-2402.69,0.00030136,2]
[311708939,1705347041672,-500.0,0.00030136,2]
[311708941,1705347041682,-356.58383934,0.00030136,2]
[311708943,1705347041692,-500.69084539,0.00030136,2]
[311708945,1705347041702,-502.41032459,0.00030136,2]
[311708947,1705347041712,-500.0,0.00030136,2]
[311708949,1705347041723,-500.0,0.00030136,2]
[311708951,1705347041736,-168.08126236,0.00030136,2]
[311708952,1705347041746,-500.0,0.00030136,2]
[311708954,1705347041756,-500.0,0.00030136,2]
[311708956,1705347041767,-500.0,0.00030136,2]
[311708958,1705347041777,-626.87,0.00030136,2]
[311708960,1705347041787,-500.0,0.00030136,2]
[311708962,1705347041797,-500.0,0.00030136,2]
[311708964,1705347041807,-500.0,0.00030136,2]
[311708966,1705347041816,-253.24117854,0.00030136,2]
[311708968,1705347041826,-500.0,0.00030136,2]
[311708969,1705347041837,-500.0,0.00030136,2]
[311708971,1705347041846,-500.0,0.00030136,2]
[311708973,1705347041855,-150.0,0.00030136,2]
[311708975,1705347041866,-506.7967264,0.00030136,2]
[311708977,1705347041876,-500.0,0.00030136,2]
[311708979,1705347041887,-500.0,0.00030136,2]
[311708981,1705347041898,-500.0,0.00030136,2]
[311708983,1705347041907,-3020.64,0.00030136,2]
[311708985,1705347041916,-313.9541795,0.00030136,2]
[311708987,1705347041927,-254.4993865,0.00030136,2]
[311708989,1705347041936,-500.0,0.00030136,2]
[311708991,1705347041944,-500.0,0.00030136,2]
[311708993,1705347041954,-502.4278378,0.00030136,2]
[311708995,1705347041963,-500.0,0.00030136,2]
[311708997,1705347041973,-500.0,0.00030136,2]
[311708999,1705347041982,-500.0,0.00030136,2]
[311709000,1705347041990,-500.0,0.00030136,2]
[311709002,1705347042000,-19031.09,0.00030136,2]
[311709004,1705347042009,-500.0,0.00030136,2]
[311709006,1705347042019,-232.81777432,0.00030136,2]
[311709008,1705347042028,-4528.12,0.00030136,2]
[311709010,1705347042037,-500.0,0.00030136,2]
[311709011,1705347042047,-496.52210292,0.00030136,2]
[311709012,1705347042055,-208.84713893,0.00030136,2]
[311709013,1705347042064,-500.0,0.00030136,2]
[311709014,1705347042072,-500.0,0.00030136,2]
[311709015,1705347042081,-500.49527847,0.00030136,2]
[311709016,1705347042090,-11603.56,0.00030136,2]
[311709017,1705347042098,-500.0,0.00030136,2]
[311709018,1705347042107,-505.16618972,0.00030136,2]
[311709019,1705347042117,-500.0,0.00030136,2]
[311709020,1705347042125,-500.0,0.00030136,2]
[311709021,1705347042134,-500.0,0.00030136,2]
[311709022,1705347042143,-500.0,0.00030136,2]
[311709023,1705347042152,-596.01,0.00030136,2]
[311709024,1705347042161,-500.0,0.00030136,2]
[311709025,1705347042170,-500.0,0.00030136,2]
[311709026,1705347042179,-502.22848087,0.00030136,2]
[311709027,1705347042188,-500.0,0.00030136,2]
[311709028,1705347042197,-500.0,0.00030136,2]
[311709029,1705347042207,-500.0,0.00030136,2]
[311709030,1705347042216,-500.0,0.00030136,2]
[311709031,1705347042226,-506.74811527,0.00030136,2]
[311709032,1705347042236,-1160.06,0.00030136,2]
[311709033,1705347042247,-500.0,0.00030136,2]
[311709034,1705347042257,-500.0,0.00030136,2]
[311709038,1705347042333,-1308.71,0.00030136,2]
[311709040,1705347042344,-500.0,0.00030136,2]
[311709042,1705347042354,-500.0,0.00030136,2]
[311709044,1705347042364,-500.0,0.00030136,5]
[311709046,1705347042374,-353.20690116,0.00030136,2]
[311709048,1705347042384,-674.82,0.00030136,2]
[311709050,1705347042394,-500.0,0.00030136,2]
[311709052,1705347042404,-500.0,0.00030136,2]
[311709054,1705347042414,-500.0,0.00030136,2]
[311709056,1705347042424,-500.0,0.00030136,2]
[311709057,1705347042433,-500.0,0.00030136,2]
[311709059,1705347042443,-3962.25,0.00030136,2]
[311709062,1705347042454,-204.94596919,0.00030136,2]
[311709063,1705347042463,-500.0,0.00030136,2]
[311709066,1705347042475,-500.80020563,0.00030136,2]
[311709067,1705347042486,-1630.69,0.00030136,2]
[311709069,1705347042496,-620.28,0.00030136,2]
[311709071,1705347042506,-500.0,0.00030136,2]
[311709073,1705347042517,-515.20044947,0.00030136,2]
[311709074,1705347042529,-500.0,0.00030136,2]
[311709076,1705347042538,-500.0,0.00030136,2]
[311709077,1705347042549,-512.04464966,0.00030136,2]
[311709078,1705347042559,-852.01,0.00030136,2]
[311709079,1705347042569,-2162.95,0.00030136,2]
[311709080,1705347042579,-501.13724917,0.00030136,2]
[311709081,1705347042588,-500.0,0.00030136,2]
[311709082,1705347042597,-500.0,0.00030136,2]
[311709083,1705347042606,-801.16,0.00030136,2]
[311709084,1705347042616,-624.39,0.00030136,2]
[311709085,1705347042625,-500.0,0.00030136,2]
[311709086,1705347042634,-500.0,0.00030136,2]
[311709087,1705347042643,-500.0,0.00030136,2]
[311709088,1705347042652,-954.61,0.00030136,2]
[311709089,1705347042662,-536.0178926,0.00030136,2]
[311709090,1705347042671,-200.21982101,0.00030136,2]
[311709091,1705347042681,-500.0,0.00030136,2]
[311709092,1705347042691,-2827.83,0.00030136,2]
[311709093,1705347042700,-500.0,0.00030136,2]
[311709094,1705347042710,-512.2627489,0.00030136,2]
[311709095,1705347042720,-1000.0,0.00030136,2]
[311709096,1705347042731,-500.0,0.00030136,2]
[311709097,1705347042740,-500.0,0.00030136,2]
[311709098,1705347042750,-512.41301664,0.00030136,2]
[311709099,1705347042759,-500.0,0.00030136,2]
[311709100,1705347042770,-500.0,0.00030136,2]
[311709101,1705347042780,-502.53967213,0.00030136,2]
[311709102,1705347042789,-500.0,0.00030136,2]
[311709103,1705347042799,-602.94191662,0.00030136,2]
[311709104,1705347042809,-4963.21,0.00030136,2]
[311709105,1705347042818,-500.0,0.00030136,2]
[311709106,1705347042829,-500.23364505,0.00030136,2]
[311709107,1705347042839,-500.0,0.00030136,2]
[311709108,1705347042848,-616.84550266,0.00030136,2]
[311709109,1705347042858,-500.0,0.00030136,2]
[311709110,1705347042867,-500.0,0.00030136,2]
[311709111,1705347042878,-5038.68,0.00030136,2]
[311709112,1705347042889,-500.0,0.00030136,2]
[311709113,1705347042899,-506.41801766,0.00030136,2]
[311709114,1705347042909,-500.0,0.00030136,2]
[311709115,1705347042918,-393.2744873,0.00030136,2]
[311709116,1705347042927,-504.39363086,0.00030136,2]
[311709117,1705347042936,-1116.39,0.00030136,2]
[311709118,1705347042946,-500.0,0.00030136,2]
[311709119,1705347042955,-500.0,0.00030136,2]
[311709120,1705347042966,-500.0,0.00030136,2]
[311709121,1705347042976,-537.38332628,0.00030136,2]
[311709122,1705347042984,-198.8577961,0.00030137,2]
[311709123,1705347042993,-198.8577961,0.00030137,2]
[311709124,1705347043003,-198.8577961,0.00030137,2]
[311709125,1705347043013,-198.8577961,0.00030137,2]
[311709126,1705347043023,-198.8577961,0.00030137,2]
[311709127,1705347043032,-198.8577961,0.00030137,2]
[311709128,1705347043041,-196.4630613,0.00030137,2]
[311709129,1705347043051,-198.8577961,0.000302,2]
[311709130,1705347043061,-198.8577961,0.000302,2]
[311709131,1705347043069,-198.8577961,0.000302,2]
[311709132,1705347043079,-198.8577961,0.000302,2]
[311709133,1705347043088,-198.8577961,0.000302,2]
[311709134,1705347043097,-198.8577961,0.000302,2]
[311709135,1705347043107,-198.8577961,0.000302,2]
[311709136,1705347043116,-198.8577961,0.000302,2]
[311709137,1705347043125,-198.8577961,0.000302,2]
[311709138,1705347043135,-155.0,0.00030232,2]
[311709139,1705347043144,-249.50347277,0.00030245,2]
[311709140,1705347043153,-166.666666,0.00030368,2]
[311709141,1705347043162,-500.0,0.00030409,2]
[311709142,1705347043171,-500.0,0.00030409,2]
[311709143,1705347043181,-152.6,0.00030409,2]
[311709144,1705347043190,-555.71650941,0.0003041,2]
[311709145,1705347043199,-500.0,0.0003041,2]
[311709146,1705347043208,-500.0,0.0003041,2]
[311709147,1705347043219,-500.0,0.0003041,2]
[311709148,1705347043228,-500.0,0.0003041,2]
[311709149,1705347043238,-500.0,0.0003041,2]
[311709150,1705347043247,-500.0,0.0003041,2]
[311709151,1705347043256,-500.0,0.0003041,2]
[311709152,1705347043266,-502.46645335,0.0003041,2]
[311709153,1705347043274,-500.0,0.0003041,2]
[311709154,1705347043283,-500.0,0.0003041,2]
[311709155,1705347043295,-500.0,0.0003041,2]
[311709156,1705347043303,-384.95782185,0.0003041,2]
[311709157,1705347043312,-552.08581797,0.0003041,2]
[311709158,1705347043321,-501.64420463,0.0003041,2]
[311709159,1705347043330,-587.53,0.0003041,2]
[311709160,1705347043339,-500.0,0.0003041,2]
[311709161,1705347043348,-500.0,0.0003041,2]
[311709162,1705347043357,-756.66,0.0003041,2]
[311709163,1705347043366,-500.0,0.0003041,2]
[311709164,1705347043375,-500.0,0.0003041,2]
[311709165,1705347043384,-500.0,0.0003041,2]
[311709167,1705347043394,-500.0,0.0003041,2]
[311709169,1705347043403,-1130.21,0.0003041,2]
[311709171,1705347043413,-508.34806306,0.0003041,2]
[311709172,1705347043422,-502.23964896,0.0003041,2]
[311709173,1705347043431,-500.0,0.0003041,2]
[311709174,1705347043441,-500.0,0.0003041,2]
[311709175,1705347043450,-500.0,0.0003041,2]
[311709176,1705347043459,-500.0,0.0003041,2]
[311709177,1705347043469,-502.64320736,0.0003041,2]
[311709178,1705347043478,-603.37503213,0.0003041,2]
[311709179,1705347043487,-520.74257972,0.0003041,2]
[311709180,1705347043496,-502.42486477,0.0003041,2]
[311709181,1705347043505,-500.0,0.0003041,2]
[311709182,1705347043515,-500.0,0.0003041,2]
[311709183,1705347043523,-500.0,0.0003041,2]
[311709184,1705347043532,-500.0,0.0003041,2]
[311709185,1705347043542,-500.0,0.0003041,2]
[311709186,1705347043551,-500.0,0.0003041,2]
[311709187,1705347043560,-500.0,0.0003041,2]
[311709188,1705347043570,-500.0,0.0003041,2]
[311709189,1705347043579,-691.43,0.0003041,2]
[311709190,1705347043588,-500.0,0.0003041,2]
[311709191,1705347043597,-500.0,0.0003041,2]
[311709192,1705347043606,-500.0,0.0003041,2]
[311709193,1705347043615,-500.0,0.0003041,2]
[311709194,1705347043624,-500.0,0.0003041,2]
[311709195,1705347043633,-513.55,0.0003041,2]
[311709196,1705347043642,-1835.43,0.0003041,2]
[311709197,1705347043651,-660.32,0.0003041,2]
[311709198,1705347043660,-504.98512044,0.0003041,2]
[311709199,1705347043670,-500.0,0.0003041,2]
[311709200,1705347043679,-629.94,0.0003041,2]
[311709201,1705347043688,-500.0,0.0003041,2]
[311709202,1705347043697,-500.0,0.0003041,2]
[311709203,1705347043706,-500.0,0.0003041,2]
[311709204,1705347043716,-500.0,0.0003041,2]
[311709205,1705347043725,-500.0,0.0003041,2]
[311709206,1705347043734,-500.0,0.0003041,2]
[311709207,1705347043743,-500.0,0.0003041,2]
[311709208,1705347043752,-880.93,0.0003041,2]
[311709209,1705347043762,-500.0,0.0003041,2]
[311709210,1705347043772,-500.0,0.0003041,2]
[311709212,1705347043783,-611.53,0.0003041,2]
[311709213,1705347043792,-500.0,0.0003041,2]
[311709215,1705347043803,-500.72509967,0.0003041,2]
[311709217,1705347043815,-197.23681669,0.0003041,2]
[311709218,1705347043825,-500.0,0.0003041,2]
[311709219,1705347043834,-505.55188647,0.0003041,2]
[311709221,1705347043843,-667.78,0.0003041,2]
[311709222,1705347043853,-500.0,0.0003041,2]
[311709223,1705347043862,-500.0,0.0003041,2]
[311709224,1705347043871,-500.0,0.0003041,2]
[311709225,1705347043885,-166.95289881,0.0003041,2]
[311709226,1705347043895,-500.0,0.0003041,2]
[311709227,1705347043904,-500.85367027,0.0003041,2]
[311709228,1705347043978,-500.0,0.0003041,2]
[311709229,1705347043987,-1084.04,0.0003041,2]
[311709230,1705347043996,-404.64629949,0.0003041,2]
[311709231,1705347044006,-501.93142578,0.0003041,2]
[311709232,1705347044015,-219.91537736,0.0003041,2]
[311709233,1705347044024,-500.0,0.0003041,2]
[311709234,1705347044033,-500.0,0.0003041,2]
[311709235,1705347044042,-511.65056995,0.0003041,2]
[311709236,1705347044051,-344.25649987,0.0003041,2]
[311709237,1705347044061,-500.0,0.0003041,2]
[311709238,1705347044070,-500.0,0.0003041,2]
[311709239,1705347044080,-507.48338079,0.0003041,2]
[311709240,1705347044089,-500.0,0.0003041,2]
[311709241,1705347044098,-500.0,0.0003041,2]
[311709242,1705347044107,-500.0,0.0003041,2]
[311709243,1705347044116,-500.0,0.0003041,2]
[311709244,1705347044126,-500.0,0.0003041,2]
[311709245,1705347044135,-645.13,0.0003041,2]
[311709246,1705347044144,-364.42439101,0.0003041,2]
[311709247,1705347044153,-500.0,0.0003041,2]
[311709248,1705347044162,-500.72640144,0.0003041,2]
[311709249,1705347044172,-500.0,0.0003041,2]
[311709250,1705347044181,-500.0,0.0003041,2]
[311709251,1705347044190,-500.0,0.0003041,2]
[311709252,1705347044199,-500.0,0.0003041,2]
[311709253,1705347044208,-500.0,0.0003041,2]
[311709254,1705347044217,-500.39389175,0.0003041,2]
[311709255,1705347044227,-500.0,0.0003041,2]
[311709256,1705347044236,-500.0,0.0003041,2]
[311709257,1705347044245,-304.64569029,0.0003041,2]
[311709258,1705347044254,-500.0,0.0003041,2]
[311709259,1705347044263,-297.68122373,0.0003041,2]
[311709260,1705347044272,-500.0,0.0003041,2]
[311709261,1705347044281,-476.36050445,0.0003041,2]
[311709262,1705347044291,-835.09,0.0003041,2]
[311709263,1705347044300,-501.59674884,0.0003041,2]
[311709264,1705347044309,-807.56,0.0003041,2]
[311709265,1705347044317,-500.0,0.0003041,2]
[311709266,1705347044326,-500.0,0.0003041,2]
[311709267,1705347044335,-173.39777827,0.0003041,2]
[311709268,1705347044345,-500.0,0.0003041,2]
[311709269,1705347044354,-500.0,0.0003041,2]
[311709270,1705347044363,-252.5833351,0.0003041,2]
[311709271,1705347044372,-643.11957261,0.0003041,2]
[311709272,1705347044381,-500.0,0.0003041,2]
[311709273,1705347044391,-500.0,0.0003041,2]
[311709274,1705347044400,-648.91,0.0003041,2]
[311709275,1705347044409,-500.0,0.0003041,2]
[311709276,1705347044418,-500.0,0.0003041,2]
[311709277,1705347044427,-500.65301249,0.0003041,2]
[311709278,1705347044436,-500.0,0.0003041,2]
[311709279,1705347044447,-500.0,0.0003041,2]
[311709280,1705347044456,-500.0,0.0003041,2]
[311709281,1705347044465,-500.0,0.0003041,2]
[311709282,1705347044474,-2287.46,0.0003041,2]
[311709283,1705347044483,-500.0,0.0003041,2]
[311709284,1705347044492,-500.0,0.0003041,2]
[311709285,1705347044501,-500.0,0.0003041,2]
[311709286,1705347044510,-500.0,0.0003041,2]
[311709287,1705347044519,-500.0,0.0003041,2]
[311709288,1705347044527,-331.22561931,0.0003041,2]
[311709289,1705347044536,-510.80992751,0.0003041,2]
[311709290,1705347044545,-501.16418846,0.0003041,2]
[311709291,1705347044554,-500.0,0.0003041,2]
[311709292,1705347044563,-500.0,0.0003041,2]
[311709293,1705347044572,-1082.28,0.0003041,2]
[311709294,1705347044581,-500.0,0.0003041,2]
[311709295,1705347044590,-500.0,0.0003041,2]
[311709296,1705347044599,-2402.69,0.0003041,2]
[311709297,1705347044609,-512.24310383,0.0003041,2]
[311709298,1705347044619,-500.0,0.0003041,2]
[311709299,1705347044628,-514.79494569,0.0003041,2]
[311709300,1705347044637,-509.96359719,0.0003041,2]
[311709301,1705347044647,-506.78614687,0.0003041,2]
[311709302,1705347044655,-626.87,0.0003041,2]
[311709303,1705347044664,-500.0,0.0003041,2]
[311709304,1705347044674,-500.0,0.0003041,2]
[311709305,1705347044682,-500.0,0.0003041,2]
[311709306,1705347044691,-500.0,0.0003041,2]
[311709307,1705347044700,-500.0,0.0003041,2]
[311709308,1705347044709,-501.99211654,0.0003041,2]
[311709309,1705347044718,-150.0,0.0003041,2]
[311709310,1705347044728,-503.51601162,0.0003041,2]
[311709311,1705347044737,-500.0,0.0003041,2]
[311709312,1705347044746,-3020.64,0.0003041,2]
[311709313,1705347044755,-500.0,0.0003041,2]
[311709314,1705347044764,-500.0,0.0003041,2]
[311709315,1705347044773,-500.0,0.0003041,2]
[311709316,1705347044782,-500.0,0.0003041,2]
[311709317,1705347044791,-19031.09,0.0003041,2]
[311709318,1705347044800,-500.0,0.0003041,2]
[311709319,1705347044809,-4528.12,0.0003041,2]
[311709320,1705347044818,-500.0,0.0003041,2]
[311709321,1705347044829,-500.0,0.0003041,2]
[311709322,1705347044839,-11603.56,0.0003041,2]
[311709323,1705347044847,-500.0,0.0003041,2]
[311709324,1705347044857,-500.0,0.0003041,2]
[311709325,1705347044867,-502.76880136,0.0003041,2]
[311709326,1705347044877,-596.01,0.0003041,2]
[311709327,1705347044887,-500.0,0.0003041,2]
[311709328,1705347044896,-500.0,0.0003041,2]
[311709329,1705347044905,-500.0,0.0003041,2]
[311709330,1705347044915,-500.0,0.0003041,2]
[311709331,1705347044924,-502.82129946,0.0003041,2]
[311709332,1705347044933,-1160.06,0.0003041,2]
[311709333,1705347044943,-500.0,0.0003041,2]
[311709334,1705347044952,-1308.71,0.0003041,2]
[311709335,1705347044962,-517.61704025,0.0003041,2]
[311709336,1705347044973,-500.0,0.0003041,5]
[311709337,1705347044982,-674.82,0.0003041,2]
[311709338,1705347044991,-500.0,0.0003041,2]
[311709339,1705347045000,-500.0,0.0003041,2]
[311709340,1705347045010,-500.0,0.0003041,2]
[311709341,1705347045019,-163.83594978,0.0003041,2]
[311709342,1705347045028,-3962.25,0.0003041,2]
[311709343,1705347045037,-500.0,0.0003041,2]
[311709344,1705347045046,-1630.69,0.0003041,2]
[311709345,1705347045056,-620.28,0.0003041,2]
[311709346,1705347045064,-500.0,0.0003041,2]
[311709347,1705347045074,-504.74242484,0.0003041,2]
[311709348,1705347045083,-500.0,0.0003041,2]
[311709349,1705347045092,-852.01,0.0003041,2]
[311709350,1705347045102,-2162.95,0.0003041,2]
[311709352,1705347045110,-500.0,0.0003041,2]
[311709354,1705347045119,-801.16,0.0003041,2]
[311709356,1705347045129,-624.39,0.0003041,2]
[311709357,1705347045138,-242.89215293,0.0003041,2]
[311709359,1705347045147,-500.0,0.0003041,2]
[311709361,1705347045156,-500.0,0.0003041,2]
[311709363,1705347045166,-954.61,0.0003041,2]
[311709365,1705347045175,-2827.83,0.0003041,2]
[311709367,1705347045184,-1003.24708738,0.0003041,2]
[311709369,1705347045193,-500.0,0.0003041,2]
[311709371,1705347045202,-500.0,0.0003041,2]
[311709373,1705347045211,-500.0,0.0003041,2]
[311709374,1705347045221,-4963.21,0.0003041,2]
[311709377,1705347045232,-500.0,0.0003041,2]
[311709378,1705347045244,-500.0,0.0003041,2]
[311709380,1705347045254,-500.0,0.0003041,2]
[311709382,1705347045263,-5038.68,0.0003041,2]
[311709384,1705347045272,-500.0,0.0003041,2]
[311709386,1705347045280,-500.0,0.0003041,2]
[311709388,1705347045289,-1116.39,0.0003041,2]
[311709390,1705347045299,-500.0,0.0003041,2]
[311709392,1705347045308,-500.0,0.0003041,2]
[311709394,1705347045317,-500.0,0.0003041,2]
[311709396,1705347045327,-398.26,0.00030493,2]
[311709398,1705347045336,-200.38451189,0.000305,2]
[311709400,1705347045345,-155.01395126,0.00030581,2]
[311709402,1705347045355,-155.01395126,0.00030581,4]
[311709404,1705347045363,-155.01395126,0.00030581,2]
[311709406,1705347045373,-155.26905646,0.00030581,4]
[311709415,1705347045441,-242.70971485,0.00030581,4]
[311709417,1705347045450,-160.756103,0.00030581,4]
[311709419,1705347045459,-20842.42787433,0.00030581,4]
[311709420,1705347045469,-174.94849142,0.00030581,4]
[311709422,1705347045478,-1042.06966143,0.00030581,4]
[311709423,1705347045487,-875.01165605,0.00030581,4]
[311709424,1705347045496,-155.01395126,0.00030581,4]
[311709425,1705347045505,-155.01395126,0.00030581,4]
[311709426,1705347045514,-2030.29653603,0.00030581,4]
[311709427,1705347045523,-309.85902872,0.00030581,4]
[311709428,1705347045532,-1220.24948289,0.00030581,4]
[311709429,1705347045542,-515.17636802,0.00030581,4]
[311709430,1705347045551,-19669.45887816,0.00030581,4]
[311709431,1705347045560,-500.0,0.00030582,2]
[311709432,1705347045569,-500.0,0.00030582,2]
[311709433,1705347045579,-500.0,0.00030582,2]
[311709434,1705347045588,-500.0,0.00030582,2]
[311709435,1705347045597,-500.0,0.00030582,2]
[311709436,1705347045607,-594.2143433,0.00030582,4]
[311709437,1705347045617,-1694.17346883,0.00030582,4]
[311709438,1705347045626,-615.80248759,0.00030582,4]
[311709439,1705347045636,-166.39764695,0.00030582,4]
[311709440,1705347045645,-155.01395126,0.00030582,2]
[311709441,1705347045654,-382.55742344,0.00030582,2]
[311709442,1705347045664,-326.53390715,0.00030582,2]
[311709443,1705347045673,-500.0,0.00030582,2]
[311709444,1705347045682,-500.0,0.00030582,2]
[311709445,1705347045692,-373.33611885,0.00030582,2]
[311709446,1705347045701,-500.0,0.00030582,2]
[311709447,1705347045710,-500.0,0.00030582,2]
[311709448,1705347045720,-500.0,0.00030582,2]
[311709449,1705347045729,-348.20888748,0.00030582,2]
[311709450,1705347045739,-500.0,0.00030582,2]
[311709451,1705347045749,-282.85762689,0.00030582,2]
[311709452,1705347045760,-500.0,0.00030582,2]
[311709453,1705347045771,-500.0,0.00030582,2]
[311709454,1705347045782,-500.0,0.00030582,2]
[311709455,1705347045792,-500.0,0.00030582,2]
[311709456,1705347045801,-500.0,0.00030582,2]
[311709457,1705347045811,-500.0,0.00030582,2]
[311709458,1705347045821,-500.0,0.00030582,2]
[311709459,1705347045831,-500.0,0.00030582,2]
[311709460,1705347045841,-500.0,0.00030582,2]
[311709461,1705347045850,-500.0,0.00030582,2]
[311709462,1705347045861,-500.0,0.00030582,2]
[311709463,1705347045871,-500.0,0.00030582,2]
[311709464,1705347045886,-500.0,0.00030582,2]
[311709465,1705347045895,-266.14126307,0.00030582,2]
[311709466,1705347045905,-500.0,0.00030582,2]
[311709467,1705347045914,-500.0,0.00030582,2]
[311709468,1705347045923,-500.0,0.00030582,2]
[311709469,1705347045932,-500.0,0.00030582,2]
[311709470,1705347045941,-500.0,0.00030582,2]
[311709471,1705347045951,-500.0,0.00030582,2]
[311709472,1705347045960,-500.0,0.00030582,2]
[311709473,1705347045969,-500.0,0.00030582,2]
[311709474,1705347045979,-500.0,0.00030582,2]
[311709475,1705347045988,-500.0,0.00030582,2]
[311709476,1705347045998,-500.0,0.00030582,2]
[311709477,1705347046007,-500.0,0.00030582,2]
[311709478,1705347046017,-500.0,0.00030582,2]
[311709479,1705347046026,-500.0,0.00030582,2]
[311709480,1705347046036,-16050.83320476,0.00030583,2]
[311709485,1705347046290,-1413.42859915,0.00030034,2]
[311709488,1705347046300,-500.0,0.00030136,2]
[311709490,1705347046309,-500.0,0.0003041,2]
[311709491,1705347046318,-21154.82893849,0.00030583,2]
[311709492,1705347046330,-8941.90814349,0.00030583,2]
[311709493,1705347046341,-5091.98263617,0.00030583,2]
[311709494,1705347046352,-1254.47,0.00030583,2]
[311709495,1705347046532,-500.0,0.00030136,2]
[311709496,1705347046542,-500.0,0.00030136,2]
[311709497,1705347046551,-500.0,0.00030136,2]
[311709498,1705347046561,-500.0,0.0003041,2]
[311709499,1705347046569,-419.23,0.0003041,2]
[311709500,1705347046579,-3580.77,0.00030583,2]
[311709501,1705347046591,-5910.95530363,0.00030583,2]
[311709502,1705347046603,-615.42130348,0.00030583,2]
[311709503,1705347046668,-328.41605815,0.00030136,2]
[311709504,1705347047239,-1.49739542,0.00030136,2]
[311709584,1705347300446,-154.98450155,0.00027367,4]
[311709585,1705347300468,-606.01549845,0.00028482,2]
[311709586,1705347367688,-154.98450155,0.00027121,4]
[311709587,1705347385821,0.01549845,0.00027121,4]
[311709588,1705347432912,-154.9690031,0.00027121,4]
[311709589,1705347432933,-154.98450155,0.00028481,2]
[311709590,1705347432954,-50.73074318,0.00028482,2]
[311709591,1705347432975,-173.31575217,0.00028482,2]
[311709592,1705347497920,-154.98450155,0.00027121,4]
[311709593,1705347497942,-498.01549845,0.00027121,2]
[311709595,1705347566489,-154.98450155,0.00025931,4]
[311709596,1705347566509,-166.666666,0.00028242,2]
[311709597,1705347566528,-131.95452301,0.00028482,2]
[311709598,1705347566549,-343.20044242,0.00028482,2]
[311709599,1705347566569,-154.98450155,0.00028482,2]
[311709600,1705347566589,-123.20936547,0.00028482,2]
[311709607,1705347636291,-154.98450155,0.00025931,4]
[311709608,1705347636313,-155.29054342,0.00027121,2]
[311709609,1705347636335,-269.72495503,0.00027121,2]
[311709618,1705347705771,-154.98450155,0.00025931,4]
[311709619,1705347705792,-35.97882862,0.00027121,2]
[311709620,1705347705813,-154.98450155,0.00027121,2]
[311709621,1705347705834,-378.922438,0.0002806,2]
[311709622,1705347705856,-95.67617835,0.00028482,2]
[311709623,1705347705877,-305.27027518,0.00028482,2]
[311709624,1705347705898,-10.18327675,0.0002859,2]
[311709631,1705347774124,-154.98450155,0.00025931,4]